bitfinex-derivatives/quotes_SOLF0:USTF0_20240926
["timestamp","ask_amount","ask_price","bid_price","bid_amount"]
[1727310026143,10.33,148.73,148.68,10.33]
[1727310027848,3.3632,148.69,148.68,10.33]
[1727310029551,1.2927,148.74,148.68,10.33]
[1727310029740,11.6227,148.74,148.69,10.33]
[1727310029940,10.33,148.74,148.69,10.33]
[1727310030345,3.3627,148.71,148.69,10.33]
[1727310030548,82.07809197,148.75,148.7,10.33]
[1727310030744,71.74809197,148.75,148.7,10.33]
[1727310030947,71.74809197,148.75,148.72,10.33]
[1727310031353,10.33,148.77,148.73,10.33]
[1727310032752,3.3622,148.74,148.73,10.33]
[1727310033660,3.3623,148.73,148.71,10.33]
[1727310034156,3.3625,148.72,148.71,10.33]
[1727310035769,3.3628,148.71,148.69,1.3666]
[1727310035959,3.3628,148.71,148.7,10.33]
[1727310036264,3.3625,148.72,148.7,10.33]
[1727310036460,3.3625,148.72,148.71,10.33]
[1727310041359,3.3625,148.72,148.69,1.3666]
[1727310041360,3.3628,148.71,148.7,10.33]
[1727310045069,3.3626,148.72,148.7,10.33]
[1727310045370,3.3626,148.72,148.71,10.33]
[1727310051764,10.33,148.74,148.66,3.3637]
[1727310051969,10.33,148.74,148.69,10.33]
[1727310052576,3.3631,148.7,148.69,10.33]
[1727310055877,10.33,148.72,148.66,1.3849]
[1727310056069,10.33,148.72,148.68,10.33]
[1727310056269,3.3632,148.69,148.68,10.33]
[1727310057365,3.3632,148.69,148.66,1.3849]
[1727310057566,3.3636,148.67,148.66,11.7149]
[1727310057872,3.3636,148.67,148.66,10.33]
[1727310058073,3.3638,148.66,148.65,80.72]
[1727310060073,10.33,148.69,148.64,10.33]
[1727310060267,3.3641,148.65,148.64,10.33]
[1727310062882,3.3639,148.66,148.64,10.33]
[1727310063176,3.3639,148.66,148.63,3.3644]
[1727310063177,3.3639,148.66,148.65,10.33]
[1727310063375,3.3637,148.67,148.65,10.33]
[1727310063577,3.3637,148.67,148.66,10.33]
[1727310064580,10.33,148.7,148.65,10.33]
[1727310065178,3.3638,148.66,148.65,10.33]
[1727310065873,3.3637,148.67,148.65,10.33]
[1727310066073,10.33,148.73,148.66,10.33]
[1727310066282,10.33,148.73,148.68,10.33]
[1727310066579,10.33,148.71,148.67,10.33]
[1727310067168,10.33,148.68,148.59,83.3641]
[1727310067374,10.33,148.65,148.59,83.3641]
[1727310067575,10.33,148.64,148.59,92.3557]
[1727310067785,3.3652,148.6,148.59,92.3557]
[1727310067975,3.3652,148.6,148.59,80.74]
[1727310068676,3.3652,148.6,148.59,91.07]
[1727310069079,3.3652,148.6,148.59,80.74]
[1727310069483,3.3652,148.6,148.59,91.07]
[1727310069782,3.3652,148.6,148.59,10.33]
[1727310074281,3.365,148.61,148.59,10.33]
[1727310074582,3.365,148.61,148.6,10.33]
[1727310075682,3.3648,148.62,148.6,10.33]
[1727310075987,11.6371,148.67,148.62,10.33]
[1727310076188,3.3645,148.63,148.62,10.33]
[1727310076579,10.33,148.65,148.61,10.33]
[1727310077084,3.3647,148.62,148.61,10.33]
[1727310078388,3.365,148.61,148.6,10.33]
[1727310078889,10.33,148.64,148.6,10.33]
[1727310078890,3.3648,148.62,148.6,10.33]
[1727310079088,3.3648,148.62,148.61,10.33]
[1727310080587,3.3645,148.63,148.61,10.33]
[1727310080785,10.33,148.66,148.63,10.33]
[1727310081386,3.3643,148.64,148.63,10.33]
[1727310082283,3.3645,148.63,148.62,10.33]
[1727310083084,3.3648,148.62,148.6,10.33]
[1727310087394,3.3646,148.63,148.6,10.33]
[1727310087697,3.3646,148.63,148.61,10.33]
[1727310090796,3.3647,148.62,148.61,10.33]
[1727310093105,10.33,148.62,148.58,10.33]
[1727310093496,10.33,148.61,148.56,10.33]
[1727310095400,10.33,148.59,148.54,13.6965]
[1727310095795,3.366,148.57,148.54,10.33]
[1727310096597,3.366,148.57,148.56,10.33]
[1727310097197,3.366,148.57,148.55,10.33]
[1727310097394,10.33,148.59,148.53,84.1467]
[1727310097595,10.33,148.59,148.54,10.33]
[1727310098993,1.4006,148.65,148.54,10.33]
[1727310098994,10.33,148.57,148.54,10.33]
[1727310099908,3.3665,148.55,148.53,80.78]
[1727310100405,3.3666,148.54,148.53,80.78]
[1727310101900,13.6966,148.54,148.53,80.78]
[1727310102096,3.3666,148.54,148.53,80.78]
[1727310102800,3.367,148.52,148.5,1.3898]
[1727310103007,10.33,148.54,148.5,1.3898]
[1727310103300,3.3676,148.5,148.47,10.33]
[1727310103501,2.7355,148.57,148.49,10.33]
[1727310103704,10.33,148.53,148.49,10.33]
[1727310104292,3.3673,148.51,148.49,10.33]
[1727310104700,2.7355,148.57,148.34,66.27185619]
[1727310104893,10.33,148.48,148.42,11.6313]
[1727310105097,2.7355,148.57,148.42,11.6313]
[1727310105098,10.33,148.46,148.42,11.6313]
[1727310105398,3.3688,148.45,148.42,11.6313]
[1727310106302,3.3688,148.45,148.42,1.3013]
[1727310107604,3.3688,148.44,148.42,1.3013]
[1727310108502,3.3686,148.45,148.42,1.3013]
[1727310108900,1.3171,148.48,148.42,1.3013]
[1727310109803,16.18,148.51,148.42,1.3013]
[1727310110103,3.40073392,148.5,148.42,1.3013]
[1727310110306,3.3683,148.47,148.43,3.369]
[1727310110501,3.40073392,148.5,148.42,1.3013]
[1727310111908,3.3684,148.46,148.42,4.6705]
[1727310117601,3.3684,148.46,148.42,1.3013]
[1727310117801,3.35051698,148.51,148.42,1.3013]
[1727310118008,16.18,148.52,148.44,16.18]
[1727310118208,19.53826812,148.52,148.44,16.18]
[1727310118404,3.3678,148.49,148.45,3.3686]
[1727310118606,19.53826812,148.52,148.44,16.18]
[1727310118808,3.35826812,148.52,148.44,16.18]
[1727310119005,3.3678,148.49,148.46,3.3682]
[1727310119205,3.3678,148.49,148.44,16.18]
[1727310119714,3.3679,148.48,148.45,3.3686]
[1727310120106,19.5423122,148.52,148.42,18.7917]
[1727310120410,16.18,148.5,148.43,3.369]
[1727310120604,16.18,148.5,148.42,18.7917]
[1727310120807,3.3687,148.45,148.42,5.9808]
[1727310121211,16.18,148.48,148.42,1.3013]
[1727310122007,16.18,148.48,148.38,97.04]
[1727310122204,3.34916582,148.49,148.38,98.3566]
[1727310122205,16.18,148.46,148.38,98.3566]
[1727310122416,3.3692,148.43,148.39,3.3698]
[1727310122809,3.3692,148.43,148.38,98.3566]
[1727310123221,3.3695,148.41,148.38,82.1766]
[1727310123708,16.18,148.44,148.38,80.86]
[1727310123912,3.3698,148.4,148.38,80.86]
[1727310125310,3.37,148.39,148.38,80.86]
[1727310126218,3.3703,148.38,148.35,1.3198]
[1727310128615,16.18,148.42,148.35,1.3198]
[1727310129117,19.59781158,148.47,148.38,16.18]
[1727310129714,3.3692,148.43,148.38,16.18]
[1727310130020,16.18,148.47,148.38,16.18]
[1727310130220,16.18,148.47,148.4,3.3695]
[1727310131724,3.369,148.44,148.4,3.3695]
[1727310132022,16.18,148.47,148.38,16.18]
[1727310132225,3.369,148.44,148.38,16.18]
[1727310133315,1.3955,148.48,148.38,16.18]
[1727310133316,17.5755,148.48,148.38,16.18]
[1727310133725,3.3687,148.45,148.41,3.3695]
[1727310134019,1.4187,148.5,148.42,16.18]
[1727310134226,1.4187,148.5,148.43,1.3682]
[1727310134418,3.3684,148.46,148.43,4.7372]
[1727310135323,3.3686,148.45,148.43,1.3682]
[1727310135724,3.3688,148.44,148.43,1.3682]
[1727310135925,16.18,148.48,148.38,16.18]
[1727310136127,16.18,148.46,148.38,16.18]
[1727310136431,3.3692,148.43,148.39,3.3699]
[1727310137318,16.18,148.45,148.38,3.3701]
[1727310138330,3.3693,148.42,148.38,3.3701]
[1727310138721,16.18,148.45,148.37,4.6507]
[1727310139325,16.18,148.45,148.37,1.2804]
[1727310139526,16.18,148.43,148.37,1.2804]
[1727310140422,3.3699,148.4,148.37,1.2804]
[1727310141430,19.51208984,148.43,148.34,147.15185619]
[1727310141831,16.18,148.43,148.34,147.15185619]
[1727310142228,3.3699,148.4,148.36,3.3705]
[1727310143030,3.37,148.39,148.36,3.3705]
[1727310145332,3.3698,148.4,148.36,3.3705]
[1727310146937,3.4092939,148.43,148.35,3.3708]
[1727310147136,16.18,148.41,148.34,66.27185619]
[1727310147534,3.3703,148.38,148.34,69.64275619]
[1727310147735,3.3703,148.38,148.34,66.27185619]
[1727310148939,3.331078,148.42,148.31,80.9]
[1727310148940,16.18,148.39,148.31,80.9]
[1727310149141,16.18,148.37,148.31,80.9]
[1727310149530,3.3713,148.34,148.31,80.9]
[1727310149937,3.3714,148.33,148.31,80.9]
[1727310150440,16.18,148.35,148.31,80.9]
[1727310151242,4.79197118,148.43,148.31,80.9]
[1727310151442,16.18,148.35,148.31,80.9]
[1727310151950,3.3715,148.33,148.31,80.9]
[1727310152440,3.3712,148.34,148.31,80.9]
[1727310153548,3.3712,148.34,148.3,3.372]
[1727310153943,3.3712,148.34,148.31,3.3718]
[1727310154155,3.3709,148.35,148.31,3.3718]
[1727310154752,88.09070666,148.41,148.31,16.18]
[1727310155049,88.09070666,148.41,148.32,2.7219]
[1727310155244,16.18,148.41,148.32,2.7219]
[1727310156551,3.3704,148.38,148.34,3.3711]
[1727310159456,3.3704,148.37,148.34,3.3711]
[1727310159658,3.3704,148.37,148.33,3.3712]
[1727310165660,4.79197118,148.43,148.32,2.7219]
[1727310165661,1.3847,148.43,148.35,16.18]
[1727310165858,16.18,148.45,148.35,16.18]
[1727310166061,16.18,148.45,148.37,16.18]
[1727310166252,3.3693,148.42,148.39,10.36]
[1727310166765,3.3691,148.43,148.41,10.36]
[1727310167262,3.3689,148.44,148.41,10.36]
[1727310167562,10.36,148.45,148.41,10.36]
[1727310168357,71.89005646,148.46,148.38,16.18]
[1727310169364,3.3693,148.42,148.38,19.5501]
[1727310170565,71.89005646,148.46,148.38,16.18]
[1727310170764,71.89005646,148.46,148.39,1.3359]
[1727310171467,3.3688,148.45,148.39,1.3359]
[1727310172161,3.3688,148.45,148.4,3.3696]
[1727310173353,3.3688,148.44,148.4,3.3696]
[1727310174564,3.3691,148.43,148.39,4.7058]
[1727310175855,3.3688,148.45,148.39,1.3359]
[1727310176462,3.3688,148.44,148.41,3.3694]
[1727310177063,3.3688,148.44,148.4,3.3696]
[1727310177666,16.18,148.48,148.39,1.3359]
[1727310177867,71.86068608,148.51,148.42,16.18]
[1727310178466,71.86068608,148.51,148.44,3.3688]
[1727310178467,3.3681,148.48,148.44,3.3688]
[1727310180568,71.86068608,148.51,148.43,3.369]
[1727310180768,71.86068608,148.51,148.42,16.18]
[1727310180967,3.368,148.48,148.44,3.3687]
[1727310182769,71.86068608,148.51,148.43,3.369]
[1727310182770,3.3682,148.47,148.43,3.369]
[1727310182965,16.18,148.5,148.41,16.18]
[1727310183167,16.18,148.48,148.41,16.18]
[1727310183368,16.18,148.48,148.42,3.3692]
[1727310183966,16.18,148.48,148.41,16.18]
[1727310184369,16.18,148.48,148.4,3.3696]
[1727310184581,1.3269,148.47,148.39,98.4159]
[1727310184973,1.3269,148.47,148.41,3.3695]
[1727310185378,3.3688,148.44,148.41,3.3695]
[1727310185876,3.3688,148.44,148.39,98.4159]
[1727310185877,3.3688,148.44,148.4,3.3697]
[1727310186266,3.3691,148.43,148.39,85.6057]
[1727310186966,3.3691,148.43,148.4,3.3697]
[1727310190777,3.3689,148.44,148.4,3.3697]
[1727310192282,3.3687,148.45,148.42,10.35]
[1727310192782,3.3689,148.44,148.42,10.35]
[1727310193176,10.35,148.46,148.42,10.35]
[1727310193577,3.3688,148.44,148.42,10.35]
[1727310193977,10.35,148.45,148.4,13.7197]
[1727310194581,10.35,148.44,148.39,15.0557]
[1727310195084,10.35,148.41,148.39,1.3359]
[1727310195378,10.35,148.41,148.36,10.35]
[1727310195585,3.3699,148.4,148.37,3.3704]
[1727310196285,3.40837477,148.44,148.38,3.3701]
[1727310196482,16.18,148.45,148.38,3.3701]
[1727310196684,3.3694,148.42,148.38,3.3701]
[1727310197981,3.3692,148.43,148.39,3.3699]
[1727310198682,3.3689,148.44,148.4,3.3696]
[1727310204377,1.2858,148.46,148.37,16.18]
[1727310204982,3.3693,148.42,148.38,3.3701]
[1727310205780,3.3693,148.42,148.39,3.3699]
[1727310207389,3.3691,148.43,148.39,3.3699]
[1727310208793,3.3687,148.45,148.39,16.18]
[1727310209092,71.86068608,148.51,148.41,16.18]
[1727310209393,73.20148608,148.51,148.42,1.3214]
[1727310209790,3.3683,148.47,148.43,3.3689]
[1727310211796,3.368,148.48,148.44,19.5487]
[1727310212996,3.3677,148.49,148.45,3.3685]
[1727310213194,3.3677,148.49,148.44,16.18]
[1727310213195,73.20148608,148.51,148.44,16.18]
[1727310213795,3.3681,148.48,148.44,19.5487]
[1727310214193,73.20148608,148.51,148.42,17.5014]
[1727310214596,3.3683,148.47,148.42,20.8705]
[1727310214795,73.20148608,148.51,148.4,1.302]
[1727310214796,16.18,148.48,148.4,1.302]
[1727310215195,16.18,148.48,148.41,3.3694]
[1727310215196,3.3687,148.45,148.41,3.3694]
[1727310218395,3.3687,148.45,148.41,13.7194]
[1727310219198,3.3688,148.44,148.41,13.7194]
[1727310219702,3.3688,148.44,148.41,10.35]
[1727310221599,3.369,148.43,148.41,10.35]
[1727310223604,10.35,148.44,148.4,10.35]
[1727310223807,10.35,148.43,148.39,10.35]
[1727310224811,10.35,148.44,148.4,10.35]
[1727310225799,10.35,148.42,148.36,84.2506]
[1727310226009,10.35,148.42,148.36,94.6006]
[1727310226203,3.3699,148.4,148.36,13.7206]
[1727310230907,3.37,148.39,148.36,13.7206]
[1727310233420,10.35,148.42,148.38,10.35]
[1727310233723,11.716,148.43,148.38,10.35]
[1727310233914,3.3696,148.41,148.39,10.35]
[1727310237619,10.35,148.43,148.39,10.35]
[1727310237620,3.3694,148.42,148.39,10.35]
[1727310237813,1.3886,148.48,148.4,10.35]
[1727310238015,10.35,148.45,148.4,10.35]
[1727310238918,3.3691,148.43,148.4,13.7197]
[1727310239814,3.3693,148.42,148.4,10.35]
[1727310240215,3.3693,148.42,148.39,13.7199]
[1727310240522,1.3886,148.48,148.34,2.6848]
[1727310240523,3.3695,148.41,148.38,13.7201]
[1727310243519,3.3695,148.41,148.38,10.35]
[1727310243724,3.3694,148.42,148.39,10.35]
[1727310244918,3.3692,148.43,148.41,10.35]
[1727310245316,10.35,148.46,148.41,10.35]
[1727310245829,10.35,148.46,148.4,10.35]
[1727310246128,10.35,148.45,148.39,11.7213]
[1727310246321,3.3697,148.41,148.39,1.3713]
[1727310247823,10.35,148.41,148.35,6.51412305]
[1727310248127,10.35,148.4,148.35,10.35]
[1727310248326,3.3703,148.38,148.35,10.35]
[1727310249022,3.37,148.39,148.37,10.35]
[1727310249326,3.37,148.39,148.38,10.35]
[1727310249922,3.3698,148.4,148.38,10.35]
[1727310250335,11.7184,148.43,148.38,10.35]
[1727310250723,3.3698,148.4,148.38,10.35]
[1727310252327,3.37,148.39,148.38,10.35]
[1727310252522,3.37,148.39,148.36,10.35]
[1727310252726,10.35,148.4,148.34,83.6712]
[1727310252924,3.3706,148.37,148.34,82.3025]
[1727310253129,3.3706,148.37,148.34,92.6525]
[1727310254032,3.3706,148.37,148.34,96.0235]
[1727310254630,3.3706,148.37,148.35,10.35]
[1727310254832,3.3703,148.38,148.35,10.35]
[1727310255725,3.3704,148.37,148.35,10.35]
[1727310257727,10.35,148.38,148.34,1.4025]
[1727310258430,10.35,148.38,148.35,10.35]
[1727310258635,10.35,148.4,148.35,10.35]
[1727310259238,10.35,148.38,148.34,11.7525]
[1727310259542,10.35,148.36,148.3,80.9]
[1727310259741,10.35,148.36,148.31,10.35]
[1727310260436,3.3712,148.34,148.31,10.35]
[1727310262240,3.3714,148.33,148.31,10.35]
[1727310262436,3.3714,148.33,148.3,82.1931]
[1727310262643,10.35,148.36,148.31,10.35]
[1727310263538,3.3715,148.33,148.31,10.35]
[1727310263948,10.35,148.36,148.31,10.35]
[1727310263949,3.3715,148.32,148.31,10.35]
[1727310264346,3.3715,148.32,148.3,1.2931]
[1727310264548,10.35,148.37,148.31,10.35]
[1727310264843,2.6784,148.43,148.34,10.35]
[1727310265045,10.35,148.39,148.34,10.35]
[1727310265445,3.3708,148.36,148.34,10.35]
[1727310269549,3.3709,148.35,148.34,10.35]
[1727310270846,3.3707,148.36,148.34,10.35]
[1727310271751,3.3704,148.37,148.35,10.35]
[1727310273351,3.3704,148.37,148.36,10.35]
[1727310273746,10.35,148.41,148.36,10.35]
[1727310273747,3.3702,148.38,148.36,10.35]
[1727310273953,10.35,148.41,148.36,10.35]
[1727310274352,10.35,148.39,148.35,1.4053]
[1727310275051,3.3706,148.36,148.35,1.4053]
[1727310278049,3.371,148.35,148.33,10.35]
[1727310279460,10.35,148.35,148.29,91.27]
[1727310280360,3.3717,148.32,148.29,91.27]
[1727310281058,3.3714,148.33,148.31,10.35]
[1727310281456,2.6784,148.43,148.33,3.3713]
[1727310281754,3.3706,148.37,148.36,10.35]
[1727310284260,10.35,148.38,148.31,3.3717]
[1727310284561,10.35,148.38,148.33,10.35]
[1727310284752,3.3708,148.36,148.33,10.35]
[1727310286465,10.35,148.38,148.33,10.35]
[1727310286661,10.35,148.37,148.33,10.35]
[1727310287957,3.3711,148.34,148.33,10.35]
[1727310289157,3.371,148.35,148.33,10.35]
[1727310289465,3.371,148.35,148.3,4.1157]
[1727310289466,10.35,148.39,148.34,10.35]
[1727310289757,10.35,148.39,148.35,10.35]
[1727310290162,3.3706,148.36,148.35,10.35]
[1727310292558,2.6784,148.43,148.33,3.3712]
[1727310292559,3.3709,148.35,148.33,10.35]
[1727310294362,3.3711,148.34,148.32,10.35]
[1727310294763,10.35,148.39,148.33,10.35]
[1727310294965,10.35,148.39,148.35,10.35]
[1727310295772,3.3708,148.36,148.35,10.35]
[1727310299463,3.3705,148.37,148.35,10.35]
[1727310300169,10.35,148.38,148.33,10.35]
[1727310300667,74.57720517,148.43,148.36,10.35]
[1727310300668,10.35,148.4,148.36,10.35]
[1727310301668,3.3704,148.37,148.36,10.35]
[1727310302568,73.26720517,148.43,148.36,10.35]
[1727310302771,73.26720517,148.43,148.39,10.35]
[1727310303064,6.7356,148.49,148.42,10.35]
[1727310303267,10.35,148.47,148.42,10.35]
[1727310304070,3.3689,148.44,148.42,10.35]
[1727310304268,1.3224,148.49,148.38,1.2822]
[1727310304269,11.6724,148.49,148.43,10.35]
[1727310304462,11.6724,148.49,148.44,10.35]
[1727310304973,1.3224,148.49,148.46,10.35]
[1727310305368,3.3681,148.47,148.46,10.35]
[1727310306376,3.3681,148.47,148.44,4.6658]
[1727310308174,3.3681,148.47,148.44,1.297]
[1727310308680,3.3685,148.46,148.44,1.297]
[1727310311577,3.3686,148.45,148.44,1.297]
[1727310313771,3.3689,148.44,148.41,16.17]
[1727310313974,16.17,148.49,148.39,98.4013]
[1727310314482,3.3694,148.42,148.39,82.2313]
[1727310314681,16.17,148.47,148.39,82.2313]
[1727310314884,1.3362,148.46,148.39,82.2313]
[1727310315074,3.3694,148.42,148.39,82.2313]
[1727310315679,3.3695,148.41,148.39,82.2313]
[1727310316086,3.3695,148.41,148.39,1.3313]
[1727310316879,3.3697,148.4,148.39,1.3313]
[1727310317980,3.3696,148.41,148.39,1.3313]
[1727310318486,1.3362,148.46,148.39,1.3313]
[1727310318688,3.3697,148.4,148.39,1.3313]
[1727310323290,3.3701,148.39,148.35,97.05]
[1727310323484,3.3701,148.39,148.36,1.2971]
[1727310324890,3.3701,148.39,148.36,4.6677]
[1727310325796,3.3701,148.39,148.36,1.2971]
[1727310326092,3.3702,148.38,148.36,1.2971]
[1727310326294,16.17,148.43,148.36,1.2971]
[1727310326884,3.3703,148.38,148.36,1.2971]
[1727310327996,3.37,148.39,148.36,1.2971]
[1727310328192,1.2983,148.45,148.37,16.17]
[1727310328488,10.36,148.44,148.39,10.36]
[1727310328692,1.3362,148.46,148.42,10.36]
[1727310328892,11.6962,148.46,148.42,10.36]
[1727310329994,3.3692,148.43,148.42,10.36]
[1727310330397,3.3694,148.42,148.39,19.5498]
[1727310333496,3.3696,148.41,148.39,16.18]
[1727310337401,3.3696,148.41,148.38,3.3702]
[1727310340707,3.3697,148.4,148.37,19.5504]
[1727310342998,17.5162,148.46,148.37,16.18]
[1727310343206,1.3362,148.46,148.39,16.18]
[1727310343597,3.3693,148.43,148.39,19.5498]
[1727310344506,3.3693,148.43,148.39,16.18]
[1727310345210,3.3693,148.43,148.39,19.5499]
[1727310345704,3.3693,148.42,148.39,19.5499]
[1727310346103,16.18,148.5,148.41,16.18]
[1727310346305,3.3686,148.46,148.43,16.18]
[1727310346502,1.3993,148.51,148.43,19.5489]
[1727310347107,3.3684,148.46,148.43,16.18]
[1727310347404,3.3684,148.46,148.43,19.549]
[1727310347806,3.3682,148.47,148.43,19.549]
[1727310348210,1.3993,148.51,148.43,19.549]
[1727310348605,3.3686,148.46,148.43,16.18]
[1727310348813,17.5793,148.51,148.43,16.18]
[1727310350110,3.3686,148.46,148.43,16.18]
[1727310352412,3.3686,148.46,148.44,10.35]
[1727310353911,3.3686,148.45,148.44,10.35]
[1727310354110,3.3686,148.45,148.42,5.9716]
[1727310354111,10.35,148.48,148.43,10.35]
[1727310354314,10.35,148.46,148.42,1.3158]
[1727310354511,3.369,148.44,148.42,1.3158]
[1727310355415,3.369,148.44,148.42,11.6658]
[1727310357106,3.3686,148.45,148.43,10.35]
[1727310357306,3.3686,148.45,148.44,10.35]
[1727310357815,3.3684,148.46,148.44,10.35]
[1727310359521,10.35,148.49,148.44,10.35]
[1727310359522,3.3686,148.45,148.44,10.35]
[1727310360410,3.3688,148.44,148.42,11.6658]
[1727310361016,3.369,148.43,148.42,1.3158]
[1727310361220,10.35,148.44,148.39,10.35]
[1727310361615,3.3695,148.41,148.39,10.35]
[1727310362617,3.3695,148.41,148.38,80.88]
[1727310362821,3.3695,148.41,148.39,10.35]
[1727310367224,3.3693,148.42,148.39,10.35]
[1727310370227,3.3695,148.41,148.39,10.35]
[1727310370429,10.35,148.44,148.38,10.35]
[1727310370726,1.3993,148.51,148.38,10.35]
[1727310370727,3.3699,148.4,148.38,10.35]
[1727310372135,3.37,148.39,148.37,1.4059]
[1727310372333,3.37,148.39,148.36,10.35]
[1727310373629,3.3702,148.38,148.36,10.35]
[1727310376430,11.6331,148.43,148.37,10.35]
[1727310377037,3.37,148.39,148.37,10.35]
[1727310378638,3.3698,148.4,148.38,10.35]
[1727310382141,1.2831,148.43,148.39,10.35]
[1727310382347,10.35,148.45,148.4,10.35]
[1727310382543,10.35,148.46,148.41,10.35]
[1727310382747,14.36374571,148.5,148.41,10.35]
[1727310383043,10.35,148.46,148.41,10.35]
[1727310383950,3.3691,148.43,148.41,10.35]
[1727310384938,3.3693,148.42,148.4,10.35]
[1727310385751,3.3693,148.42,148.39,13.7199]
[1727310388655,1.3927,148.5,148.39,10.35]
[1727310388656,10.35,148.43,148.39,10.35]
[1727310388954,10.35,148.43,148.38,11.6317]
[1727310389755,3.3699,148.4,148.38,11.6317]
[1727310391755,3.3699,148.4,148.38,10.35]
[1727310393052,10.35,148.39,148.28,66.42757851]
[1727310393251,10.35,148.39,148.33,10.35]
[1727310393559,10.35,148.4,148.35,10.35]
[1727310393959,3.3704,148.38,148.35,10.35]
[1727310394154,10.35,148.4,148.35,10.35]
[1727310394956,3.3704,148.37,148.35,10.35]
[1727310398350,3.3708,148.36,148.33,3.3712]
[1727310398557,10.35,148.37,148.32,11.6484]
[1727310399052,3.3712,148.34,148.32,11.6484]
[1727310401664,3.3707,148.36,148.33,10.35]
[1727310401864,3.3707,148.36,148.35,10.35]
[1727310410272,3.3705,148.37,148.35,10.35]
[1727310412876,3.3703,148.38,148.35,10.35]
[1727310418878,1.405,148.42,148.32,1.2984]
[1727310418879,1.405,148.42,148.37,10.35]
[1727310419373,11.755,148.42,148.37,13.7203]
[1727310419574,10.35,148.41,148.32,1.2984]
[1727310419779,10.35,148.41,148.36,10.35]
[1727310420378,3.37,148.39,148.36,13.7205]
[1727310420575,10.35,148.41,148.36,13.7205]
[1727310421885,3.37,148.39,148.36,13.7205]
[1727310422574,1.405,148.42,148.32,1.2984]
[1727310422575,3.3702,148.38,148.35,3.3708]
[1727310423981,3.3702,148.38,148.35,13.7208]
[1727310426183,3.3702,148.38,148.35,10.35]
[1727310426372,3.3704,148.37,148.32,1.2984]
[1727310426570,3.3704,148.37,148.33,10.35]
[1727310427781,3.3704,148.37,148.34,3.3711]
[1727310427982,3.3704,148.37,148.34,13.7211]
[1727310430077,3.3703,148.38,148.35,13.7208]
[1727310430483,3.3703,148.38,148.36,10.35]
[1727310430684,3.3699,148.4,148.37,10.35]
[1727310431183,3.3699,148.4,148.37,13.7203]
[1727310431783,3.3696,148.41,148.38,3.3701]
[1727310432187,10.35,148.42,148.38,3.3701]
[1727310432580,10.35,148.41,148.36,10.35]
[1727310432889,10.35,148.4,148.34,10.35]
[1727310433081,3.3703,148.38,148.35,3.3708]
[1727310436888,3.3703,148.38,148.35,13.7208]